bitfinex/quotes_ETHUSD_20240614
["timestamp","ask_amount","ask_price","bid_price","bid_amount"]
[1718393482700,2.94562,3394.9,3394.3,0.05891302]
[1718393482999,2.94569,3394.8,3394.3,0.05891302]
[1718393483353,2.94569,3394.8,3394.2,1.772]
[1718393483758,2.94565,3394.9,3394.2,1.772]
[1718393484206,2.94582,3394.7,3394.3,1.772]
[1718393484404,2.94588,3394.6,3394.3,1.772]
[1718393484572,2.94611,3394.4,3394.1,0.0555808]
[1718393485674,2.94614,3394.3,3394.1,0.0555808]
[1718393485905,2.9462,3394.2,3394.1,0.0555808]
[1718393486216,5.8924,3394.2,3394.1,0.0555808]
[1718393487026,5.94534,3395.2,3394.1,0.0555808]
[1718393487027,5.94541,3395.2,3394.1,0.0555808]
[1718393487311,2.94578,3394.7,3394.2,1.83091448]
[1718393487519,2.94578,3394.7,3394.2,1.772]
[1718393487520,2.94593,3394.6,3394.2,1.772]
[1718393487741,2.94594,3394.5,3394.2,1.772]
[1718393487862,2.94585,3394.6,3394.2,1.772]
[1718393488368,2.94576,3394.7,3394.1,0.0555808]
[1718393488680,5.8924,3394.2,3394.1,0.0555808]
[1718393489281,2.9462,3394.2,3394.1,0.0555808]
[1718393491119,5.8924,3394.2,3394.1,0.0555808]
[1718393491489,2.9462,3394.2,3394.1,0.0555808]
[1718393492781,2.94603,3394.4,3394.1,0.0555808]
[1718393492782,2.94613,3394.3,3394.1,0.0555808]
[1718393494620,2.94604,3394.4,3394.1,0.0555808]
[1718393494784,2.94614,3394.3,3394.1,0.0555808]
[1718393495116,2.9462,3394.2,3394.1,0.0555808]
[1718393498111,5.8924,3394.2,3394.1,0.0555808]
[1718393498430,8.8386,3394.2,3394.1,0.0555808]
[1718393499430,5.8924,3394.2,3394.1,0.0555808]
[1718393502213,2.9462,3394.2,3394.1,0.0555808]
[1718393503812,7.31,3395.7,3394.1,0.0555808]
[1718393504012,2.94543,3395.1,3394.4,1.772]
[1718393504449,2.94557,3395.0,3394.4,1.772]
[1718393504760,2.94543,3395.1,3394.3,1.772]
[1718393504903,2.94562,3394.9,3394.3,1.772]
[1718393505497,2.94568,3394.8,3394.3,1.772]
[1718393505723,2.94568,3394.8,3394.2,1.772]
[1718393505919,2.94561,3394.9,3394.2,1.772]
[1718393506136,2.94561,3394.9,3394.2,4.71817]
[1718393506458,2.94609,3394.4,3394.1,0.0555808]
[1718393506958,2.94586,3394.6,3394.1,0.0555808]
[1718393507430,3.0,3394.8,3394.1,0.0555808]
[1718393508375,2.94603,3394.4,3394.1,0.0555808]
[1718393509603,2.94596,3394.5,3394.1,0.0555808]
[1718393509828,3.0,3394.8,3394.1,0.0555808]
[1718393510228,2.94549,3395.1,3394.4,1.772]
[1718393511147,2.94551,3395.0,3394.4,1.772]
[1718393511485,2.94575,3394.8,3394.1,3.0018508]
[1718393511762,2.94583,3394.7,3394.2,1.772]
[1718393511919,2.94581,3394.7,3394.2,1.772]
[1718393512559,2.94585,3394.6,3394.1,0.0555808]
[1718393512854,2.94578,3394.7,3394.1,0.11450041]
[1718393513321,2.94578,3394.7,3394.1,0.0555808]
[1718393514391,2.94578,3394.7,3394.1,0.11450041]
[1718393516273,2.94569,3394.8,3394.1,3.06078041]
[1718393516476,2.94577,3394.7,3394.1,1.88650041]
[1718393517184,3.0,3395.5,3394.3,1.772]
[1718393517387,7.31,3396.1,3394.6,1.772]
[1718393517388,2.94533,3395.2,3394.6,1.772]
[1718393517678,2.94517,3395.4,3394.7,2.94575]
[1718393518879,7.31,3396.1,3395.4,1.772]
[1718393519052,2.94444,3396.3,3395.4,1.772]
[1718393519437,2.94444,3396.3,3395.5,2.945]
[1718393519649,2.94446,3396.2,3395.5,2.945]
[1718393519876,2.94433,3396.4,3395.4,4.71709]
[1718393519877,2.94433,3396.4,3395.6,2.94498]
[1718393520380,2.94433,3396.4,3395.4,4.71709]
[1718393520381,2.94417,3396.6,3395.4,1.772]
[1718393520589,2.94454,3396.2,3395.0,2.94546]
[1718393520792,2.94454,3396.2,3395.1,1.772]
[1718393520793,2.94488,3395.8,3395.1,1.772]
[1718393521095,2.94488,3395.8,3394.9,2.94558]
[1718393521096,2.94513,3395.5,3394.4,2.94598]
[1718393521257,4.43344514,3396.5,3394.6,2.94577]
[1718393521258,2.94518,3395.4,3394.6,2.94577]
[1718393521456,2.94534,3395.2,3394.4,2.94601]
[1718393521645,2.94534,3395.2,3394.5,1.772]
[1718393522072,2.94552,3395.0,3394.3,4.71809]
[1718393522291,2.94552,3395.0,3394.3,1.772]
[1718393522598,2.94568,3394.8,3394.1,0.0555808]
[1718393522892,2.9457,3394.8,3394.1,0.0555808]
[1718393523051,2.9457,3394.8,3394.1,4.7738008]
[1718393523446,2.9457,3394.8,3394.1,1.8275808]
[1718393523652,2.9457,3394.8,3394.1,0.0555808]
[1718393523847,2.94586,3394.6,3394.1,0.0555808]
[1718393524050,2.94579,3394.7,3394.1,0.0555808]
[1718393525248,2.9452,3395.4,3394.1,1.88650363]
[1718393525567,3.0,3395.6,3394.5,2.94587]
[1718393525568,2.94533,3395.2,3394.5,2.94587]
[1718393526364,2.94542,3395.1,3394.4,2.946]
[1718393526589,2.94553,3395.0,3394.3,4.7181]
[1718393526993,2.94553,3395.0,3394.3,4.71811]
[1718393527687,2.94542,3395.1,3394.4,2.94597]
[1718393528489,2.94568,3394.8,3394.2,1.772]
[1718393528709,2.94529,3395.3,3394.1,0.0555808]
[1718393528710,2.94586,3394.6,3394.1,0.0555808]
[1718393529408,2.94595,3394.5,3394.1,0.0555808]
[1718393529568,2.94585,3394.6,3394.1,0.0555808]
[1718393529774,2.94613,3394.3,3394.1,0.0555808]
[1718393530083,2.94605,3394.4,3394.1,0.0555808]
[1718393530273,2.94594,3394.5,3394.1,0.0555808]
[1718393530274,2.94611,3394.3,3394.1,0.0555808]
[1718393530476,2.94604,3394.4,3394.1,0.0555808]
[1718393530806,2.94596,3394.5,3394.1,0.0555808]
[1718393531112,3.0,3395.0,3394.2,2.94619]
[1718393531113,2.94561,3394.9,3394.2,2.94619]
[1718393531514,3.0,3395.0,3394.3,1.830916]
[1718393531885,2.94534,3395.2,3394.5,2.94593]
[1718393532210,2.94543,3395.1,3394.4,2.946]
[1718393532601,2.9456,3394.9,3394.3,1.772]
[1718393533206,2.9456,3394.9,3394.1,0.0555808]
[1718393533389,2.94603,3394.4,3394.1,0.0555808]
[1718393533592,2.94618,3394.3,3394.1,0.0555808]
[1718393534103,3.0,3395.2,3394.4,2.94601]
[1718393534302,2.9454,3395.2,3394.5,1.772]
[1718393534901,3.0,3395.3,3394.5,4.71793]
[1718393535219,2.94525,3395.3,3394.6,2.94583]
[1718393535379,2.94534,3395.2,3394.5,4.71792]
[1718393535584,2.94542,3395.1,3394.4,4.718]
[1718393536005,2.94535,3395.2,3394.5,2.94593]
[1718393536181,2.94535,3395.2,3394.5,4.71793]
[1718393539121,2.94542,3395.1,3394.5,1.772]
[1718393539276,2.94525,3395.3,3394.5,1.772]
[1718393539481,2.94535,3395.2,3394.5,4.71787]
[1718393539719,2.94544,3395.1,3394.5,1.772]
[1718393540093,2.94535,3395.2,3394.5,4.71793]
[1718393540719,2.94542,3395.1,3394.5,1.772]
[1718393541086,2.94535,3395.2,3394.5,4.71794]
[1718393542743,2.94526,3395.3,3394.6,2.94585]
[1718393543992,7.31,3396.5,3394.6,2.19983114]
[1718393544201,7.31,3396.5,3394.5,1.772]
[1718393544202,2.94438,3396.3,3395.4,2.94508]
[1718393544422,2.88897216,3396.2,3395.2,2.94532]
[1718393544644,2.94468,3396.0,3395.1,4.7174]
[1718393544852,2.94482,3395.8,3394.8,2.94559]
[1718393545038,2.94473,3395.9,3394.9,2.94559]
[1718393545190,2.9446,3396.1,3395.0,2.94549]
[1718393545390,2.9446,3396.1,3395.4,2.94511]
[1718393545837,2.9443,3396.4,3395.7,2.94489]
[1718393546130,2.94418,3396.6,3395.6,2.94496]
[1718393546131,8.08307764,3396.3,3395.6,2.94496]
[1718393546418,2.94448,3396.2,3395.5,2.94505]
[1718393548328,2.9446,3396.1,3395.0,4.71742]
[1718393548529,2.94492,3395.7,3395.0,4.7175]
[1718393549148,2.94468,3396.0,3395.0,1.772]
[1718393549362,2.94491,3395.7,3395.0,4.71743]
[1718393549552,2.94483,3395.8,3395.1,2.94541]
[1718393549865,2.94474,3395.9,3395.2,2.94532]
[1718393550074,2.94439,3396.3,3395.3,0.05890447]
[1718393550243,5.94429,3396.4,3395.6,2.9449]
[1718393550579,5.94429,3396.4,3395.7,2.94489]
[1718393550580,2.94439,3396.3,3395.7,2.94489]
[1718393551145,2.94439,3396.3,3395.6,2.94496]
[1718393551333,2.94447,3396.2,3395.5,2.94505]
[1718393551632,2.94449,3396.2,3395.5,2.94507]
[1718393552833,2.94455,3396.1,3395.4,2.94514]
[1718393553070,2.94455,3396.1,3395.3,4.71717]
[1718393553071,2.94465,3396.0,3395.3,2.94522]
[1718393554063,2.94447,3396.2,3395.3,4.71722]
[1718393554268,2.94456,3396.1,3395.4,2.94514]
[1718393554659,2.94411,3396.7,3395.9,2.94468]
[1718393554865,6.47537824,3397.8,3396.3,2.94436]
[1718393554866,2.94379,3397.0,3396.3,2.94436]
[1718393555075,2.94371,3397.1,3396.4,2.94428]
[1718393555784,2.94377,3397.0,3396.3,2.94436]
[1718393556751,2.94408,3396.7,3396.0,1.772]
[1718393557097,2.94408,3396.7,3395.5,7.56244514]
[1718393557098,2.9439,3396.9,3395.5,6.129]
[1718393557253,3.0,3397.4,3396.1,2.94454]
[1718393557453,2.94384,3397.0,3396.2,2.94445]
[1718393557651,3.0,3396.9,3396.2,2.94445]
[1718393558357,5.94387,3396.9,3396.2,2.94445]
[1718393558566,2.94397,3396.8,3396.1,4.71655]
[1718393559981,2.94397,3396.8,3396.2,2.94446]
[1718393560502,2.94397,3396.8,3396.1,4.71649]
[1718393560676,2.94397,3396.8,3395.7,2.94488]
[1718393560677,2.94325,3397.6,3396.3,7.8108]
[1718393560880,2.94335,3397.5,3396.8,2.94393]
[1718393561086,2.94318,3397.7,3396.9,2.94377]
[1718393561302,2.9431,3397.8,3397.0,2.94375]
[1718393561511,2.9431,3397.8,3396.9,2.94383]
[1718393561512,2.9432,3397.7,3396.9,2.94383]
[1718393561820,2.94326,3397.6,3396.9,2.94383]
[1718393561976,2.94317,3397.7,3397.0,2.94375]
[1718393562316,2.94267,3398.3,3397.0,2.94375]
[1718393562317,2.94273,3398.2,3397.5,2.94325]
[1718393562516,2.94273,3398.2,3397.2,4.71552]
[1718393562517,2.94256,3398.4,3397.7,2.94308]
[1718393562717,2.94256,3398.4,3397.7,2.94315]
[1718393563024,2.94256,3398.4,3397.7,2.94314]
[1718393563177,2.94246,3398.6,3397.6,2.94324]
[1718393564017,2.94257,3398.4,3397.7,2.94315]
[1718393567291,2.94223,3398.8,3398.1,2.94273]
[1718393567530,2.94223,3398.8,3397.6,1.772]
[1718393567531,2.94237,3398.7,3398.0,2.94289]
[1718393567916,2.94239,3398.6,3397.7,2.94316]
[1718393568133,2.94239,3398.6,3397.0,0.765958]
[1718393568134,2.94287,3398.1,3397.0,2.94376]
[1718393568280,2.9428,3398.2,3396.8,2.94386]
[1718393568281,2.94308,3397.8,3396.8,2.94386]
[1718393568481,2.94317,3397.7,3397.0,2.94376]
[1718393568687,2.94317,3397.7,3396.9,2.94384]
[1718393569030,2.94307,3397.9,3397.0,4.71569]
[1718393569526,2.94307,3397.9,3397.1,2.9436]
[1718393570054,2.9431,3397.8,3397.1,2.9436]
[1718393570536,2.94287,3398.1,3397.1,2.9436]
[1718393570537,2.943,3397.9,3397.1,2.9436]
[1718393570701,2.94308,3397.8,3397.0,1.772]
[1718393570899,2.94308,3397.8,3396.8,2.94391]
[1718393570900,2.94367,3397.2,3396.5,2.94417]
[1718393571101,2.94353,3397.3,3396.6,2.94411]
[1718393571349,4.37664514,3397.7,3396.3,6.0388]
[1718393571350,2.9436,3397.2,3396.3,6.0388]
[1718393571637,2.9436,3397.2,3396.5,2.94419]
[1718393572044,1.43344514,3397.7,3395.6,6.0854]
[1718393572350,2.94378,3397.0,3396.2,2.94444]
[1718393572940,2.94388,3396.9,3396.2,2.94444]
[1718393575332,2.94367,3397.2,3396.3,2.9443]
[1718393575658,2.94367,3397.2,3396.5,2.94419]
[1718393575841,2.94343,3397.4,3396.7,2.94401]
[1718393576156,3.109,3398.4,3396.7,2.94401]
[1718393576157,2.94292,3398.0,3397.2,2.94359]
[1718393576358,2.94318,3397.7,3396.9,4.71579]
[1718393576530,2.94309,3397.8,3397.1,2.94365]
[1718393576729,2.94295,3398.0,3397.2,2.94356]
[1718393576934,2.943,3397.9,3397.2,2.94356]
[1718393577135,2.94309,3397.8,3397.1,2.94368]
[1718393577524,2.943,3397.9,3397.2,2.94358]
[1718393578373,2.943,3397.9,3397.0,2.94376]
[1718393578545,2.943,3397.9,3397.2,2.94359]
[1718393579589,2.94326,3397.6,3396.9,1.772]
[1718393579788,2.9436,3397.2,3396.5,1.772]
[1718393580447,2.94356,3397.3,3396.2,2.9444]
[1718393580636,2.94386,3396.9,3396.1,4.71654]
[1718393580835,2.94403,3396.7,3396.0,1.772]
[1718393581134,2.94412,3396.6,3396.0,1.772]
[1718393581547,2.94404,3396.7,3396.0,1.772]
[1718393581742,2.94395,3396.8,3396.0,1.772]
[1718393581966,2.94412,3396.6,3396.0,1.772]
[1718393582945,2.94421,3396.5,3395.9,1.772]
[1718393583637,2.94413,3396.6,3395.9,4.71672]
[1718393584035,2.94382,3397.0,3395.9,2.538161]
[1718393584392,0.55,3397.2,3396.4,2.94428]
[1718393584393,2.9436,3397.2,3396.4,2.94428]
[1718393584841,2.94352,3397.3,3396.5,2.9442]
[1718393585092,3.0,3397.2,3396.6,2.94411]
[1718393585427,5.9436,3397.2,3396.5,2.94419]
[1718393585830,2.9436,3397.2,3396.5,2.94419]
[1718393587300,2.94352,3397.3,3396.6,2.94409]
[1718393587498,2.9436,3397.2,3396.6,2.94409]
[1718393587701,2.9436,3397.2,3396.5,2.94418]
[1718393589938,3.0,3397.8,3396.7,1.772]
[1718393590250,5.94317,3397.7,3397.0,2.94375]
[1718393591101,2.94286,3398.1,3396.8,2.94391]
[1718393591447,5.94291,3398.0,3397.3,2.94349]
[1718393591647,5.94291,3398.0,3397.4,2.94341]
[1718393592354,2.94274,3398.2,3397.5,2.94327]
[1718393592554,4.37618514,3398.2,3397.5,2.94327]
[1718393593125,6.2889,3398.9,3397.4,1.772]
[1718393593330,6.2889,3398.9,3397.6,2.94324]
[1718393593331,2.94267,3398.3,3397.6,2.94324]
[1718393594227,3.0,3398.2,3397.6,2.94324]
[1718393594617,3.0,3398.2,3397.7,2.94315]
[1718393594812,2.94258,3398.4,3397.7,2.94315]
[1718393594813,3.0,3398.3,3397.7,2.94315]
[1718393595003,2.94258,3398.4,3397.7,2.94315]
[1718393595402,2.94283,3398.1,3397.0,1.772]
[1718393595703,2.94297,3398.0,3397.3,2.94349]
[1718393596720,2.94317,3397.7,3397.0,2.94375]
[1718393597054,2.94334,3397.5,3396.8,2.94394]
[1718393597349,2.94316,3397.7,3397.0,2.94376]
[1718393598106,2.94325,3397.6,3397.0,2.94376]
[1718393598306,2.94325,3397.6,3396.9,2.94384]
[1718393599545,1.43344514,3398.2,3396.7,4.71602]
[1718393599713,2.94293,3398.0,3396.5,1.772]
[1718393599912,2.94358,3397.3,3396.6,2.9441]
[1718393600434,2.94369,3397.1,3396.5,2.94418]
[1718393600619,2.9436,3397.2,3396.5,2.94418]
[1718393600945,2.9436,3397.2,3395.9,2.94471]
[1718393600946,2.94393,3396.9,3395.9,2.94471]
[1718393601103,2.94404,3396.7,3395.7,6.2549]
[1718393601303,2.94419,3396.6,3395.9,2.9447]
[1718393602251,2.94405,3396.7,3396.0,2.94462]
[1718393605572,2.9429,3398.1,3397.2,2.94352]
[1718393605770,1.178018,3398.2,3397.7,2.94309]
[1718393606069,2.94241,3398.6,3397.5,4.71526]
[1718393606273,2.94241,3398.6,3397.7,2.94315]
[1718393606436,1.43344514,3398.5,3397.1,1.772]
[1718393606633,1.43344514,3398.5,3397.1,4.71567]
[1718393606634,2.94288,3398.1,3397.1,4.71567]
[1718393607231,4.37594514,3398.5,3396.5,3.0]
[1718393607232,2.94257,3398.4,3397.2,2.94359]
[1718393607465,1.43344514,3398.3,3397.2,2.94359]
[1718393607668,1.43344514,3398.3,3397.0,1.772]
[1718393607669,4.37609514,3398.3,3397.5,2.94326]
[1718393608374,4.37609514,3398.3,3397.4,2.94341]
[1718393608375,4.37609514,3398.3,3397.6,2.94325]
[1718393608867,6.2468,3398.7,3397.8,2.94307]
[1718393609029,1.43344514,3398.6,3397.8,2.94307]
[1718393609364,4.37583514,3398.6,3397.9,2.94292]
[1718393609565,3.0,3398.5,3397.9,2.94292]
[1718393609777,6.2468,3398.7,3398.2,2.94271]
[1718393610097,3.0,3398.6,3398.2,2.94271]
[1718393610473,3.0,3398.6,3398.1,2.94281]
[1718393612881,6.2468,3398.7,3398.1,2.94281]
[1718393614349,6.2468,3398.7,3398.0,2.94289]
[1718393614563,6.2468,3398.7,3397.9,2.94297]
[1718393614564,2.94239,3398.6,3397.9,2.94297]
[1718393614762,9.18911,3398.7,3397.9,2.94297]
[1718393615176,2.94231,3398.7,3398.0,2.9429]
[1718393615536,2.94213,3398.9,3398.1,2.94275]
[1718393615740,7.37566514,3398.8,3398.1,2.94275]
[1718393617153,3.0,3398.8,3398.2,2.94272]
[1718393617357,2.94214,3398.9,3398.2,2.94271]
[1718393617674,4.37558514,3398.9,3398.2,2.94271]
[1718393619100,2.94222,3398.8,3398.1,2.9428]
[1718393621350,2.9423,3398.7,3398.1,2.9428]
[1718393621848,2.9423,3398.7,3398.0,2.94289]
[1718393623066,2.9423,3398.7,3397.9,2.94297]
[1718393623392,2.94239,3398.6,3397.9,2.94297]
[1718393624045,2.94239,3398.6,3398.0,2.94288]
[1718393625046,2.9423,3398.7,3398.0,2.94288]
[1718393630683,2.94239,3398.6,3398.0,2.94288]
[1718393631246,1.43344514,3398.9,3397.2,1.772]
[1718393631482,2.94256,3398.4,3397.5,1.772]
[1718393631668,2.94276,3398.2,3397.5,4.71531]
[1718393632444,2.94282,3398.1,3397.5,4.71531]
[1718393633486,2.94282,3398.1,3397.4,4.7154]
[1718393633672,2.94291,3398.0,3397.4,4.7154]
[1718393634982,2.94283,3398.1,3397.4,4.7154]
[1718393635366,2.94283,3398.1,3397.4,6.10123]
[1718393636290,2.94292,3398.0,3397.4,6.10123]
[1718393636514,2.94292,3398.0,3397.4,4.7154]
[1718393636727,2.94292,3398.0,3397.3,4.71549]
[1718393637295,2.94241,3398.6,3397.4,3.00227245]
[1718393637454,2.94276,3398.2,3397.5,2.94328]
[1718393637654,2.94276,3398.2,3397.5,4.00939025]
[1718393639096,2.94276,3398.2,3397.3,4.71549]
[1718393639097,2.94305,3397.9,3397.3,1.772]
[1718393639691,2.94292,3398.0,3397.3,2.9435]
[1718393640392,2.94302,3397.9,3397.2,4.71558]
[1718393640692,2.94292,3398.0,3397.0,4.71569]
[1718393640858,2.94292,3398.0,3396.6,5.9129]
[1718393640859,2.94326,3397.6,3396.8,4.71593]
[1718393641175,2.94343,3397.4,3396.8,4.71593]
[1718393641918,2.94325,3397.6,3396.8,4.71593]
[1718393642084,2.9434,3397.5,3396.8,4.71593]
[1718393642413,2.9434,3397.5,3396.6,8.85697]
[1718393642414,2.94343,3397.4,3396.7,4.71603]
[1718393642714,2.94335,3397.5,3396.7,1.772]
[1718393642715,2.94353,3397.3,3396.7,1.772]
[1718393643085,2.94345,3397.4,3396.7,4.71602]
[1718393643410,2.94351,3397.3,3396.7,2.21954282]
[1718393645211,2.94351,3397.3,3396.7,5.16357282]
[1718393646816,2.94338,3397.5,3396.7,5.16357282]
[1718393646817,2.94345,3397.4,3396.7,5.16357282]
[1718393647022,2.94336,3397.5,3396.8,2.94393]
[1718393647229,2.94336,3397.5,3396.9,1.40204728]
[1718393647707,2.94343,3397.4,3396.9,1.40204728]
[1718393648314,2.94336,3397.5,3396.9,1.40204728]
[1718393648708,6.2654,3398.3,3396.9,1.40204728]
[1718393649015,2.94283,3398.1,3397.4,2.94342]
[1718393649927,2.94276,3398.2,3397.4,2.94342]
[1718393651002,2.94276,3398.2,3397.6,2.94325]
[1718393651393,1.43344514,3398.4,3397.7,2.94316]
[1718393651599,4.43344514,3398.4,3397.7,2.94316]
[1718393651807,7.37607514,3398.4,3397.7,2.94316]
[1718393652003,4.43344514,3398.4,3397.8,2.94306]
[1718393652190,7.37601514,3398.4,3397.8,2.94306]
[1718393652415,7.37601514,3398.4,3397.7,2.94314]
[1718393652612,7.37601514,3398.4,3397.8,2.94305]
[1718393653122,2.94212,3398.9,3398.1,2.94282]
[1718393653300,3.0,3398.7,3398.2,2.94272]
[1718393653891,3.0,3398.7,3398.1,2.94279]
[1718393654221,2.94266,3398.3,3397.3,4.71148]
[1718393654530,2.94266,3398.3,3397.6,2.94319]
[1718393654821,2.94258,3398.4,3397.7,2.9431]
[1718393655191,4.37584514,3398.6,3397.8,2.94307]
[1718393655192,2.94248,3398.5,3397.8,2.94307]
[1718393655391,4.37592514,3398.5,3397.8,2.94307]
[1718393656728,4.37592514,3398.5,3397.9,2.94298]
[1718393656889,3.0,3398.7,3398.1,2.94276]
[1718393657090,4.43344514,3398.7,3398.1,2.94276]
[1718393658328,3.0,3398.7,3398.2,2.94271]
[1718393658533,5.94204,3399.0,3398.3,2.94257]
[1718393658733,2.94213,3398.9,3398.2,2.94271]
[1718393659028,3.0,3398.8,3398.2,2.94271]
[1718393662575,5.94222,3398.8,3398.2,2.94271]
[1718393664671,5.94222,3398.8,3398.1,2.94279]
[1718393665436,2.94231,3398.7,3398.1,2.94279]
[1718393666174,2.94265,3398.3,3397.6,2.94322]
[1718393666384,2.94265,3398.3,3397.7,2.94315]
[1718393666579,2.94273,3398.2,3397.5,4.71133]
[1718393666782,2.94273,3398.2,3397.0,6.0345]
[1718393666783,1.43344514,3398.1,3397.0,2.94376]
[1718393667078,2.94317,3397.7,3397.0,2.94374]
[1718393667761,2.9434,3397.5,3396.8,4.71192]
[1718393667954,2.9434,3397.5,3396.8,5.52227728]
[1718393668274,2.9434,3397.5,3396.8,4.71192]
[1718393668470,2.94343,3397.4,3396.8,1.768]
[1718393670459,2.94326,3397.6,3396.8,4.71193]
[1718393670460,2.94335,3397.5,3396.8,4.71193]
[1718393672464,2.94327,3397.6,3396.9,2.94385]
[1718393677258,2.94327,3397.6,3397.0,2.94376]
[1718393678077,2.94336,3397.5,3396.9,2.94384]
[1718393678484,2.9434,3397.5,3396.8,2.94393]
[1718393680789,2.94357,3397.3,3396.6,2.94409]
[1718393680987,2.94363,3397.2,3396.5,2.94419]
[1718393684275,2.94363,3397.2,3396.6,0.34829588]
[1718393684480,2.94343,3397.4,3396.6,0.34829588]
[1718393684481,2.9437,3397.1,3396.6,0.34829588]
[1718393684678,2.94362,3397.2,3396.5,2.9442]
[1718393684982,2.94362,3397.2,3396.4,2.94428]
[1718393685370,2.94362,3397.2,3396.5,2.9442]
[1718393693669,2.94384,3397.0,3395.9,8.88228]
[1718393693875,2.94395,3396.8,3396.1,2.94453]
[1718393695017,3.82895,3396.8,3396.1,2.94453]
[1718393695815,2.94403,3396.7,3396.1,2.94453]
[1718393696019,2.94416,3396.6,3395.9,2.94471]
[1718393696177,2.94423,3396.5,3395.8,5.44378]
[1718393696373,0.885,3396.6,3395.9,2.94472]
[1718393696374,3.82914,3396.6,3395.9,2.94472]
[1718393696578,2.94414,3396.6,3395.9,2.94472]
[1718393698307,2.94414,3396.6,3395.9,3.872079]
[1718393699123,2.94414,3396.6,3395.9,4.757079]
[1718393699277,2.94414,3396.6,3395.9,3.872079]
[1718393701295,2.94414,3396.6,3396.0,2.94463]
[1718393701830,2.94414,3396.6,3395.9,3.872069]
[1718393705891,2.94414,3396.6,3395.9,4.757069]
[1718393706090,2.94414,3396.6,3396.0,1.00091692]
[1718393706923,2.94414,3396.6,3396.0,3.94553692]
[1718393707593,2.94414,3396.6,3396.0,2.94462]
[1718393708987,3.82905,3396.7,3396.0,2.94462]
[1718393710396,2.94405,3396.7,3396.0,2.94462]
[1718393711895,3.82905,3396.7,3396.0,2.94462]
[1718393712091,9.42643,3397.4,3395.9,0.927359]
[1718393712340,3.25593353,3398.2,3395.1,0.86426644]
[1718393712341,2.13820513,3397.3,3397.2,2.9436]
[1718393712496,1.259016,3398.0,3397.0,4.71172]
[1718393712698,2.94299,3397.9,3397.3,2.94345]
[1718393713031,2.94292,3398.0,3397.3,2.94345]
[1718393713248,0.885,3397.9,3397.3,2.94345]
[1718393713530,3.82792,3398.0,3397.4,2.94342]
[1718393714314,3.82792,3398.0,3397.3,2.94349]
[1718393714493,3.82792,3398.0,3397.4,2.94342]
[1718393718677,2.94301,3397.9,3397.3,2.94349]
[1718393718883,0.885,3397.5,3396.8,2.9439]
[1718393719030,0.885,3397.5,3397.1,2.94367]
[1718393719430,2.94308,3397.8,3397.1,2.94367]
[1718393719629,3.19869353,3398.2,3397.5,2.94333]
[1718393719944,3.0,3398.1,3397.6,2.94324]
[1718393720131,1.14093353,3398.2,3397.6,2.94324]
[1718393720334,0.25593353,3398.2,3397.7,2.94316]
[1718393720659,1.14093353,3398.2,3397.7,2.94316]
[1718393721538,0.885,3398.0,3397.3,1.768]
[1718393721745,0.885,3397.8,3397.4,2.94341]
[1718393721950,2.94291,3398.0,3397.3,2.9435]
[1718393722534,0.885,3397.8,3397.4,2.94342]
[1718393723734,0.885,3397.8,3397.3,2.9435]
[1718393726360,0.885,3397.8,3397.2,2.94358]
[1718393727176,2.94303,3397.9,3397.3,2.94347]
[1718393727343,0.885,3397.8,3397.3,2.94347]
[1718393727540,3.82811,3397.8,3397.1,1.768]
[1718393727864,0.25593353,3398.2,3396.8,1.319795]
[1718393727865,0.885,3397.6,3396.9,4.71183]
[1718393728073,3.82825,3397.6,3396.9,4.71183]
[1718393728278,3.82825,3397.6,3397.0,2.94376]
[1718393730295,2.94334,3397.5,3396.7,1.768]
[1718393730442,0.885,3397.2,3396.1,13.2545]
[1718393730646,0.885,3397.2,3396.5,2.94416]
[1718393730647,0.885,3397.0,3396.5,2.94416]
[1718393730961,6.426,3397.6,3396.5,2.94416]
[1718393730962,3.82826,3397.6,3396.9,2.94379]
[1718393731143,2.94335,3397.5,3396.9,2.94379]
[1718393731759,0.07195002,3397.4,3396.9,2.94379]
[1718393731960,3.01539002,3397.4,3396.7,7.65595]
[1718393732194,3.01539002,3397.4,3396.8,3.00281224]
[1718393732394,3.01539002,3397.4,3396.7,2.94401]
[1718393732395,0.95695002,3397.4,3396.7,2.94401]
[1718393732709,0.95695002,3397.4,3396.6,4.7121]
[1718393732710,2.94361,3397.2,3396.6,4.7121]
[1718393732862,2.94352,3397.3,3396.7,2.94403]
[1718393733056,0.06987254,3397.1,3396.7,2.94403]
[1718393733261,0.06984669,3397.2,3396.7,3.8570365]
[1718393733571,0.06981467,3397.1,3396.7,3.8570365]
[1718393733781,2.94344,3397.4,3396.7,3.8570365]
[1718393733955,0.06978265,3397.0,3396.7,0.9130065]
[1718393734159,0.885,3397.6,3396.9,2.94386]
[1718393734160,2.94325,3397.6,3396.9,2.94386]
[1718393735103,2.94318,3397.7,3397.1,2.94368]
[1718393735346,2.94318,3397.7,3396.9,2.94385]
[1718393735347,2.94325,3397.6,3397.0,2.94376]
[1718393736800,3.82825,3397.6,3397.0,2.94376]
[1718393737961,3.0,3397.9,3397.2,2.94358]
[1718393738212,6.426,3398.0,3397.2,2.94353]
[1718393738391,6.426,3398.0,3397.0,2.65116]
[1718393738392,1.14093353,3398.2,3397.7,2.94309]
[1718393738764,0.885,3398.0,3397.6,2.94322]
[1718393738996,0.885,3398.0,3397.7,2.94315]